bitfinex/quotes_BTCUSD_20240712
["timestamp","ask_amount","ask_price","bid_price","bid_amount"]
[1720744024916,4.46382805,57464.0,57463.0,3.14631575]
[1720744025127,4.46482805,57464.0,57463.0,3.16031575]
[1720744025988,4.46482805,57464.0,57463.0,3.23002275]
[1720744029856,4.47352805,57464.0,57463.0,3.23002275]
[1720744033740,4.47352805,57464.0,57463.0,3.03002275]
[1720744034508,4.47352805,57464.0,57463.0,2.93002275]
[1720744034734,4.47352805,57464.0,57463.0,3.03002275]
[1720744035347,4.47352805,57464.0,57463.0,1.88197275]
[1720744035573,4.47352805,57464.0,57463.0,2.58197275]
[1720744036441,4.47352805,57464.0,57463.0,2.78197275]
[1720744036753,4.47352805,57464.0,57463.0,2.92652839]
[1720744037473,4.47352805,57464.0,57463.0,3.72262839]
[1720744038088,4.47352805,57464.0,57463.0,3.57807275]
[1720744038299,4.47352805,57464.0,57463.0,3.72262109]
[1720744038507,4.47352805,57464.0,57463.0,4.1667795]
[1720744038712,4.47352805,57464.0,57463.0,3.92912109]
[1720744038913,4.47352805,57464.0,57463.0,4.14594361]
[1720744039228,4.47348329,57464.0,57463.0,4.14594361]
[1720744041356,4.47348329,57464.0,57463.0,3.78457275]
[1720744041523,4.47348329,57464.0,57463.0,4.49397293]
[1720744041726,4.47348329,57464.0,57463.0,4.13262275]
[1720744041928,4.47348329,57464.0,57463.0,4.49394703]
[1720744042511,4.47348329,57464.0,57463.0,5.19394703]
[1720744044533,4.47348329,57464.0,57463.0,4.83262275]
[1720744044709,4.47348329,57464.0,57463.0,5.19394635]
[1720744046249,4.16383731,57464.0,57463.0,5.19394635]
[1720744047094,0.0611,57484.0,57470.0,3.168898]
[1720744047266,0.0611,57484.0,57483.0,0.82]
[1720744047495,0.0611,57484.0,57483.0,2.05258019]
[1720744047692,0.0611,57484.0,57483.0,2.40050819]
[1720744048070,0.0757,57485.0,57484.0,1.93365105]
[1720744048414,0.0757,57485.0,57484.0,2.24839966]
[1720744049079,0.0757,57485.0,57484.0,1.70047766]
[1720744049836,0.0767,57485.0,57484.0,1.71447766]
[1720744051010,0.0777,57485.0,57484.0,1.72447766]
[1720744051257,0.0777,57485.0,57484.0,2.02447766]
[1720744051432,0.0777,57485.0,57484.0,2.37238995]
[1720744051834,0.0777,57485.0,57484.0,2.22787975]
[1720744051991,0.002,57485.0,57484.0,2.59538958]
[1720744052882,0.002,57485.0,57484.0,2.83295849]
[1720744053090,0.002,57485.0,57484.0,3.21573983]
[1720744053295,0.001,57485.0,57484.0,3.58757611]
[1720744053504,0.001,57485.0,57484.0,3.60157611]
[1720744053750,0.00828,57487.0,57486.0,2.120455]
[1720744053951,0.00828,57487.0,57486.0,2.63484534]
[1720744054247,0.00828,57487.0,57486.0,3.07217244]
[1720744054702,0.00828,57487.0,57486.0,3.0724736]
[1720744055177,0.00928,57487.0,57486.0,3.0864736]
[1720744055399,0.00928,57487.0,57486.0,2.98302795]
[1720744055615,0.00928,57487.0,57486.0,3.68302795]
[1720744056051,0.10388744,57534.0,57505.0,0.00306353]
[1720744056319,0.2031,57506.0,57505.0,0.11106558]
[1720744056537,0.2031,57506.0,57505.0,0.10800205]
[1720744056754,0.2031,57506.0,57505.0,0.11106558]
[1720744057620,0.2031,57506.0,57505.0,0.11606558]
[1720744058063,0.2031,57506.0,57505.0,0.11106558]
[1720744058504,0.2031,57506.0,57505.0,0.18974358]
[1720744058971,0.3472,57506.0,57505.0,0.08174153]
[1720744059193,0.3472,57506.0,57505.0,0.18974358]
[1720744059410,0.3472,57506.0,57505.0,0.19168005]
[1720744059623,0.3472,57506.0,57505.0,0.18668005]
[1720744059836,0.3472,57506.0,57505.0,0.18974358]
[1720744060315,0.3472,57506.0,57505.0,0.18668005]
[1720744060545,0.3472,57506.0,57505.0,0.087678]
[1720744060795,0.002,57509.0,57508.0,1.98522105]
[1720744060979,0.002,57509.0,57508.0,3.08649508]
[1720744061248,0.002,57509.0,57508.0,3.74077208]
[1720744061510,0.0626,57527.0,57508.0,3.74077208]
[1720744061511,0.51068611,57556.0,57528.0,1.42533005]
[1720744061681,0.0625,57547.0,57528.0,3.1061571]
[1720744061904,0.0625,57547.0,57528.0,3.16704057]
[1720744061905,0.08151,57540.0,57528.0,3.16704057]
[1720744062125,0.08151,57540.0,57528.0,3.41778141]
[1720744062356,0.08151,57540.0,57539.0,1.128975]
[1720744062579,0.08151,57540.0,57539.0,1.34720575]
[1720744063006,0.07651,57540.0,57539.0,1.35026928]
[1720744063930,0.0625,57547.0,57542.0,0.62936005]
[1720744064155,0.002,57549.0,57542.0,1.14716075]
[1720744064156,0.00287899,57549.0,57542.0,1.14716075]
[1720744064378,0.02120134,57554.0,57553.0,0.30800205]
[1720744064591,0.02120134,57554.0,57553.0,0.47823075]
[1720744064810,0.02120134,57554.0,57553.0,0.65198275]
[1720744065051,0.02120134,57554.0,57553.0,0.99948775]
[1720744065316,0.02120134,57554.0,57553.0,1.34699275]
[1720744065501,0.00827,57564.0,57563.0,0.28172405]
[1720744065725,0.00827,57564.0,57563.0,0.90287195]
[1720744065979,0.00827,57564.0,57563.0,2.15776195]
[1720744066622,0.00827,57564.0,57563.0,3.56903775]
[1720744066624,0.00827,57564.0,57563.0,3.62071244]
[1720744066846,0.00827,57564.0,57563.0,2.93982244]
[1720744067085,0.00827,57564.0,57563.0,2.88814775]
[1720744067342,0.00827,57564.0,57563.0,2.87414775]
[1720744067581,0.00827,57564.0,57563.0,2.88814775]
[1720744068075,0.00827,57564.0,57563.0,2.87414775]
[1720744068315,0.00827,57564.0,57563.0,2.88814775]
[1720744068566,0.00827,57564.0,57563.0,2.20220275]
[1720744068816,0.00827,57564.0,57563.0,2.24820275]
[1720744069053,0.00827,57564.0,57563.0,2.59564775]
[1720744069542,0.00827,57564.0,57563.0,3.14309275]
[1720744069786,0.00827,57564.0,57563.0,2.82364775]
[1720744070035,0.00827,57564.0,57563.0,2.60964775]
[1720744070287,0.00827,57564.0,57563.0,2.42614775]
[1720744070534,0.00827,57564.0,57563.0,2.44014775]
[1720744070811,0.00827,57564.0,57563.0,2.25570275]
[1720744071342,0.00827,57564.0,57563.0,1.64825775]
[1720744071815,0.00827,57564.0,57563.0,0.47823075]
[1720744071817,0.00827,57564.0,57563.0,1.01339775]
[1720744072559,0.00827,57564.0,57563.0,0.81339775]
[1720744072817,0.00827,57564.0,57563.0,0.99939775]
[1720744073101,0.21137,57564.0,57563.0,0.5439507]
[1720744073343,0.21137,57564.0,57563.0,1.01339775]
[1720744073849,0.21137,57564.0,57563.0,1.02739775]
[1720744074091,0.21137,57564.0,57563.0,1.01339775]
[1720744074570,0.21137,57564.0,57563.0,1.02739775]
[1720744074810,0.21137,57564.0,57563.0,1.01339775]
[1720744075509,0.21137,57564.0,57563.0,1.02739775]
[1720744075752,0.00827,57564.0,57563.0,2.72973275]
[1720744075988,0.00827,57564.0,57563.0,2.70528775]
[1720744076258,0.002,57569.0,57568.0,1.48395405]
[1720744076530,0.002,57569.0,57568.0,2.2215721]
[1720744077533,0.2031,57579.0,57575.0,1.15537405]
[1720744077778,0.0057923,57582.0,57575.0,1.15537405]
[1720744077779,0.0057923,57582.0,57579.0,1.48372005]
[1720744078042,0.0057923,57582.0,57579.0,1.59394875]
[1720744078277,0.0057923,57582.0,57579.0,1.75394875]
[1720744078509,0.0057923,57582.0,57579.0,2.45394875]
[1720744078751,0.0057923,57582.0,57579.0,1.34660075]
[1720744079007,0.0057923,57582.0,57579.0,2.04660075]
[1720744079496,0.0057923,57582.0,57579.0,1.96060075]
[1720744079501,0.0057923,57582.0,57579.0,2.06060075]
[1720744079748,0.0057923,57582.0,57579.0,2.46794875]
[1720744080186,0.0057923,57582.0,57579.0,3.29879675]
[1720744080400,0.0057923,57582.0,57579.0,2.78844875]
[1720744081218,0.0057923,57582.0,57579.0,3.13579675]
[1720744081418,0.0057923,57582.0,57579.0,3.33579675]
[1720744082207,0.0057923,57582.0,57579.0,3.13579675]
[1720744082407,0.0057923,57582.0,57579.0,2.78844875]
[1720744083024,0.0057923,57582.0,57579.0,3.17065675]
[1720744083217,0.0057923,57582.0,57579.0,2.82330875]
[1720744083559,0.0057923,57582.0,57579.0,2.63980875]
[1720744083676,0.0057923,57582.0,57579.0,1.93980875]
[1720744083874,0.0057923,57582.0,57579.0,2.63980875]
[1720744084079,0.0057923,57582.0,57579.0,1.92580875]
[1720744084348,0.0057923,57582.0,57579.0,2.62580875]
[1720744084890,0.0057923,57582.0,57579.0,1.99546075]
[1720744085091,0.1452861,57580.0,57579.0,0.70076475]
[1720744085297,0.1452861,57580.0,57579.0,0.71476475]
[1720744085499,0.1452861,57580.0,57579.0,1.04811275]
[1720744085701,0.1452861,57580.0,57579.0,0.29223075]
[1720744085958,5.1452861,57580.0,57579.0,0.3842287]
[1720744086109,5.1452861,57580.0,57579.0,0.66590475]
[1720744086312,5.1452861,57580.0,57579.0,1.02725275]
[1720744086723,5.1452861,57580.0,57579.0,1.37460075]
[1720744087364,5.0057861,57580.0,57579.0,2.38194875]
[1720744087595,5.0057861,57580.0,57579.0,2.50274875]
[1720744087829,5.0057861,57580.0,57579.0,2.48874875]
[1720744088121,5.0057861,57580.0,57579.0,2.50274875]
[1720744088281,5.0057861,57580.0,57579.0,2.51674875]
[1720744088803,5.0057861,57580.0,57579.0,2.48874875]
[1720744089135,5.0057861,57580.0,57579.0,2.51674875]
[1720744089555,5.0057861,57580.0,57579.0,2.50274875]
[1720744089891,5.0057861,57580.0,57579.0,2.78874875]
[1720744090087,5.0057861,57580.0,57579.0,2.95601206]
[1720744090235,5.0057861,57580.0,57579.0,3.30336006]
[1720744090434,5.0057861,57580.0,57579.0,3.48686006]
[1720744090801,5.0057861,57580.0,57579.0,3.46186006]
[1720744091032,5.0057861,57580.0,57579.0,3.47586006]
[1720744091826,5.0057861,57580.0,57579.0,3.11451206]
[1720744092029,5.0057861,57580.0,57579.0,3.12851206]
[1720744092253,5.0057861,57580.0,57579.0,3.48986006]
[1720744092429,5.0057861,57580.0,57579.0,3.83720806]
[1720744092644,5.0057861,57580.0,57579.0,3.47586006]
[1720744092928,5.0057861,57580.0,57579.0,3.48986006]
[1720744093128,5.0057861,57580.0,57579.0,3.34559675]
[1720744093331,5.0057861,57580.0,57579.0,3.69294475]
[1720744093527,5.0057861,57580.0,57579.0,3.33159675]
[1720744093975,5.0057861,57580.0,57579.0,3.34559675]
[1720744094174,5.0057861,57580.0,57579.0,3.33159675]
[1720744094593,5.0057861,57580.0,57579.0,3.34559675]
[1720744094996,5.0057861,57580.0,57579.0,2.31774875]
[1720744095208,5.0881861,57580.0,57579.0,1.33560075]
[1720744095417,5.0881861,57580.0,57579.0,1.14960075]
[1720744095557,5.0881861,57580.0,57579.0,0.81457875]
[1720744095756,5.0881861,57580.0,57579.0,0.97425275]
[1720744095968,5.0881861,57580.0,57579.0,1.33560075]
[1720744096204,5.0881861,57580.0,57579.0,1.39560075]
[1720744096533,5.0881861,57580.0,57579.0,1.40960075]
[1720744096953,5.0881861,57580.0,57579.0,1.33560075]
[1720744097158,5.0881861,57580.0,57579.0,1.39560075]
[1720744097349,5.0881861,57580.0,57579.0,1.40960075]
[1720744097555,5.0881861,57580.0,57579.0,1.39560075]
[1720744097912,5.0881861,57580.0,57579.0,1.40960075]
[1720744098157,5.0881861,57580.0,57579.0,1.14653272]
[1720744098359,5.0881861,57580.0,57579.0,1.00225275]
[1720744098501,5.0881861,57580.0,57579.0,0.79919344]
[1720744098700,5.0881861,57580.0,57579.0,0.65490475]
[1720744098897,5.0881861,57580.0,57579.0,0.45490475]
[1720744099198,5.0881861,57580.0,57579.0,1.14654727]
[1720744099399,5.0057861,57580.0,57579.0,2.54859127]
[1720744099609,5.0057861,57580.0,57579.0,2.47159127]
[1720744100015,5.0057861,57580.0,57579.0,2.70875694]
[1720744100673,5.0057861,57580.0,57579.0,2.47159127]
[1720744100874,5.0057861,57580.0,57579.0,2.97159127]
[1720744101677,5.0057861,57580.0,57579.0,2.97156713]
[1720744101876,5.1461861,57580.0,57579.0,0.49117308]
[1720744102079,5.1461861,57580.0,57579.0,0.51751094]
[1720744102306,5.1461861,57580.0,57579.0,1.03853294]
[1720744102425,5.1461861,57580.0,57579.0,1.14653499]
[1720744102837,5.1461861,57580.0,57579.0,0.94653499]
[1720744103052,5.1461861,57580.0,57579.0,0.51751094]
[1720744103307,5.1461861,57580.0,57579.0,0.37228224]
[1720744103508,5.1461861,57580.0,57579.0,0.228]
[1720744104240,5.1461861,57580.0,57579.0,0.214]
[1720744104376,5.1461861,57580.0,57579.0,0.2]
[1720744104618,5.1461861,57580.0,57579.0,0.228]
[1720744104799,5.1461861,57580.0,57579.0,0.214]
[1720744105198,5.1461861,57580.0,57579.0,0.227]
[1720744105619,5.1461861,57580.0,57579.0,0.214]
[1720744105954,5.1461861,57580.0,57579.0,0.228]
[1720744106738,5.1461861,57580.0,57579.0,0.214]
[1720744107294,5.1461861,57580.0,57579.0,0.027]
[1720744107579,5.1461861,57580.0,57572.0,0.2]
[1720744107580,0.1456,57579.0,57572.0,0.2]
[1720744107816,0.1456,57579.0,57566.0,0.4771]
[1720744107817,0.2018,57575.0,57566.0,0.4771]
[1720744108019,0.3474,57567.0,57566.0,0.4771]
[1720744111519,0.1466,57567.0,57566.0,0.1712287]
[1720744111831,0.1466,57567.0,57566.0,0.001]
[1720744111832,0.4001,57567.0,57566.0,0.001]
[1720744112237,0.3991,57567.0,57563.0,0.069583]
[1720744112589,0.1423,57566.0,57563.0,0.069583]
[1720744113624,0.1423,57566.0,57565.0,0.10800205]
[1720744113822,0.1423,57566.0,57565.0,0.27823075]
[1720744114033,0.1423,57566.0,57565.0,1.14681275]
[1720744114226,0.1423,57566.0,57565.0,0.79937975]
[1720744114731,0.1423,57566.0,57565.0,1.14681275]
[1720744114930,0.001,57567.0,57565.0,1.14681275]
[1720744114931,0.001,57567.0,57566.0,0.68914205]
[1720744115138,5.0814861,57580.0,57579.0,1.63637205]
[1720744115139,5.0057861,57580.0,57579.0,1.63637205]
[1720744115370,5.0057861,57580.0,57579.0,2.0109151]
[1720744115581,5.0057861,57580.0,57579.0,2.6582631]
[1720744116196,5.0057861,57580.0,57579.0,2.80252949]
[1720744116404,5.0067861,57580.0,57579.0,2.81552949]
[1720744116661,5.0077861,57580.0,57579.0,2.4822631]
[1720744117115,5.0077861,57580.0,57579.0,2.6822631]
[1720744117321,5.0077861,57580.0,57579.0,2.4822631]
[1720744117517,5.0077861,57580.0,57579.0,2.4222631]
[1720744117716,5.0077861,57580.0,57579.0,2.4208631]
[1720744117919,5.0067861,57580.0,57579.0,2.4078631]
[1720744118123,5.0067861,57580.0,57579.0,2.7552111]
[1720744118300,5.0057861,57580.0,57579.0,2.4108631]
[1720744118666,5.0057861,57580.0,57579.0,2.2878631]
[1720744119101,5.0057861,57580.0,57579.0,2.2418631]
[1720744119319,4.79151614,57580.0,57579.0,2.2278631]
[1720744119494,4.79151614,57580.0,57579.0,2.14274875]
[1720744119713,4.79151614,57580.0,57579.0,2.15674875]
[1720744119916,4.79151614,57580.0,57579.0,1.46060075]
[1720744120684,4.79151614,57580.0,57579.0,1.44660075]
[1720744121657,4.79151614,57580.0,57579.0,1.46060075]
[1720744122033,4.79151614,57580.0,57579.0,1.44660075]
[1720744122461,4.79151614,57580.0,57579.0,1.46060075]
[1720744122658,4.79251614,57580.0,57579.0,1.47460075]
[1720744122859,4.79251614,57580.0,57579.0,1.37460075]
[1720744123063,4.79151614,57580.0,57579.0,1.36060075]
[1720744123447,4.79251614,57580.0,57579.0,1.37460075]
[1720744124054,4.79251614,57580.0,57579.0,1.78194875]
[1720744124433,4.79251614,57580.0,57579.0,1.43460075]
[1720744124805,4.79251614,57580.0,57579.0,1.37460075]
[1720744125017,4.79251614,57580.0,57579.0,1.72194875]
[1720744125231,4.79251614,57580.0,57579.0,1.37460075]
[1720744125657,4.79251614,57580.0,57579.0,1.43460075]
[1720744125865,4.79251614,57580.0,57579.0,1.78194875]
[1720744126037,4.79251614,57580.0,57579.0,1.37460075]
[1720744126461,4.79251614,57580.0,57579.0,1.43460075]
[1720744126664,4.51928307,57580.0,57579.0,1.78194875]
[1720744128052,4.51928307,57580.0,57579.0,1.72194875]
[1720744128228,4.51928307,57580.0,57579.0,1.37460075]
[1720744129666,4.52011307,57580.0,57579.0,1.37460075]
[1720744130890,4.66651307,57580.0,57579.0,1.37460075]
[1720744132294,4.66651307,57580.0,57579.0,1.72194875]
[1720744132512,4.33721557,57580.0,57579.0,1.37460075]
[1720744133314,4.33721557,57580.0,57579.0,1.72194875]
[1720744133723,4.27351557,57580.0,57579.0,1.78194875]
[1720744133981,4.19081557,57580.0,57579.0,1.78194875]
[1720744134331,4.19081557,57580.0,57579.0,1.72194875]
[1720744135339,4.19081557,57580.0,57579.0,1.37460075]
[1720744135641,4.19081557,57580.0,57579.0,1.72194875]
[1720744135839,4.19081557,57580.0,57579.0,1.37460075]
[1720744136901,4.19081557,57580.0,57579.0,1.70794875]
[1720744137279,4.19081557,57580.0,57579.0,1.36060075]
[1720744137716,4.19081557,57580.0,57579.0,1.72194875]
[1720744138093,4.18981557,57580.0,57579.0,1.70794875]
[1720744138360,4.19081557,57580.0,57579.0,1.72194875]
[1720744138607,4.18981557,57580.0,57579.0,1.70794875]
[1720744138850,4.39171557,57580.0,57579.0,0.3579027]
[1720744139091,4.39271557,57580.0,57579.0,1.02725275]
[1720744139295,4.39271557,57580.0,57579.0,1.44417475]
[1720744139795,4.53551557,57580.0,57579.0,0.283574]
[1720744140101,4.53551557,57580.0,57579.0,0.37757605]
[1720744140325,4.53651557,57580.0,57579.0,0.39157605]
[1720744140805,4.53551557,57580.0,57579.0,0.37757605]
[1720744141285,4.53751557,57580.0,57579.0,0.40557605]
[1720744141522,4.53751557,57580.0,57579.0,0.20557605]
[1720744141756,4.53651557,57580.0,57579.0,0.39157605]
[1720744142006,4.53751557,57580.0,57579.0,0.097574]
[1720744142234,4.54833842,57580.0,57579.0,0.097574]
[1720744144014,4.53751557,57580.0,57579.0,0.097574]
[1720744144213,4.54833855,57580.0,57579.0,0.097574]
[1720744144415,4.53751557,57580.0,57579.0,0.097574]
[1720744144639,4.54833855,57580.0,57579.0,0.097574]
[1720744147241,4.54833932,57580.0,57579.0,0.097574]
[1720744147534,4.54833931,57580.0,57579.0,0.097574]
[1720744147917,4.54633931,57580.0,57579.0,0.069574]
[1720744148318,4.54733931,57580.0,57579.0,0.082574]
[1720744148513,4.54733931,57580.0,57579.0,0.079574]
[1720744148768,4.54633931,57580.0,57579.0,0.34780475]
[1720744148944,4.54633931,57580.0,57579.0,1.21917475]
[1720744149526,4.47021557,57580.0,57579.0,1.21917475]
[1720744149870,4.48103792,57580.0,57579.0,1.21917475]
[1720744150458,4.48103792,57580.0,57579.0,1.22217475]
[1720744150864,4.48103794,57580.0,57579.0,1.21917475]
[1720744151269,4.48203794,57580.0,57579.0,1.23017475]
[1720744151731,4.48203794,57580.0,57579.0,1.22717475]
[1720744152063,4.48303794,57580.0,57579.0,1.23917475]
[1720744152896,4.39371557,57580.0,57579.0,1.64652275]
[1720744153145,4.19181557,57580.0,57579.0,1.64652275]
[1720744153421,4.19181557,57580.0,57579.0,2.19387075]
[1720744154248,4.19081557,57580.0,57579.0,2.18287075]
[1720744154652,4.19181557,57580.0,57579.0,2.19687075]
[1720744154857,4.19181557,57580.0,57579.0,1.99687075]
[1720744155010,4.19081557,57580.0,57579.0,1.98487075]
[1720744155291,4.18981557,57580.0,57579.0,2.24837075]
[1720744155856,4.19081557,57580.0,57579.0,2.24837075]
[1720744156277,4.19081557,57580.0,57579.0,2.26237075]
[1720744156481,4.19081557,57580.0,57579.0,2.36237075]
[1720744156708,4.19081557,57580.0,57579.0,2.39717075]
[1720744156934,4.19081557,57580.0,57579.0,2.84451875]
[1720744157143,4.18981557,57580.0,57579.0,2.83951875]
[1720744157358,4.18981557,57580.0,57579.0,2.98377322]
[1720744157578,4.18981557,57580.0,57579.0,2.83951875]
[1720744157804,4.18981557,57580.0,57579.0,3.36077162]
[1720744158217,4.18981557,57580.0,57579.0,3.34677162]
[1720744158642,4.18981557,57580.0,57579.0,3.36077162]
[1720744158862,4.18981557,57580.0,57579.0,3.37477162]
[1720744159074,4.18981557,57580.0,57579.0,3.36077162]
[1720744159403,4.18981557,57580.0,57579.0,4.06077162]
[1720744159602,4.18981557,57580.0,57579.0,4.07477162]
[1720744159777,4.18981557,57580.0,57579.0,4.77477162]
[1720744160003,4.18981557,57580.0,57579.0,4.79257785]
[1720744160423,4.18981557,57580.0,57579.0,4.09257785]
[1720744160605,4.18981557,57580.0,57579.0,4.79257785]
[1720744161185,4.18981557,57580.0,57579.0,4.09257785]
[1720744162197,4.18981557,57580.0,57579.0,3.94832498]
[1720744164844,4.18981557,57580.0,57579.0,3.94923798]
[1720744165606,4.18981557,57580.0,57579.0,3.41878998]
[1720744165788,4.18981557,57580.0,57579.0,2.63888998]
[1720744165998,4.18981557,57580.0,57579.0,2.43888998]
[1720744166385,4.18981557,57580.0,57579.0,3.33888998]
[1720744166522,4.18981557,57580.0,57579.0,3.13888998]
[1720744166928,4.18981557,57580.0,57579.0,2.15758375]
[1720744167125,4.18981557,57580.0,57579.0,2.48723575]
[1720744167326,4.18981557,57580.0,57579.0,1.75243575]
[1720744167575,4.18981557,57580.0,57579.0,1.95243575]
[1720744167961,4.18981557,57580.0,57579.0,1.75243575]
[1720744168191,4.33231557,57580.0,57579.0,1.79243575]
[1720744168413,4.33231557,57580.0,57579.0,1.44508775]
[1720744168568,4.33231557,57580.0,57579.0,1.24508775]
[1720744168898,4.33231557,57580.0,57579.0,1.08373975]
[1720744169256,4.33231557,57580.0,57579.0,1.09773975]
[1720744169457,4.33231557,57580.0,57579.0,0.89773975]
[1720744169664,4.33231557,57580.0,57579.0,1.09773975]
[1720744169864,4.33231557,57580.0,57579.0,0.89773975]
[1720744170063,4.33231557,57580.0,57579.0,1.49108775]
[1720744170475,4.33231557,57580.0,57579.0,1.50508775]
[1720744170671,4.33231557,57580.0,57579.0,1.49108775]
[1720744170845,4.33231557,57580.0,57579.0,1.47708775]
[1720744171050,4.33231557,57580.0,57579.0,1.49108775]
[1720744171051,4.18981557,57580.0,57579.0,1.49108775]
[1720744171296,4.18981557,57580.0,57579.0,1.44508775]
[1720744171499,4.18981557,57580.0,57579.0,1.24508775]
[1720744171709,3.93982369,57580.0,57579.0,1.44508775]
[1720744174106,3.93982369,57580.0,57579.0,1.24508775]
[1720744174300,3.93982369,57580.0,57579.0,1.44508775]
[1720744174507,3.93982369,57580.0,57579.0,1.24508775]
[1720744174716,3.93982369,57580.0,57579.0,1.44508775]
[1720744175531,3.93982369,57580.0,57579.0,0.37671775]
[1720744176775,4.09204664,57580.0,57579.0,0.098487]
[1720744176975,4.09204664,57580.0,57579.0,0.084487]
[1720744177180,4.09204664,57580.0,57579.0,0.098487]
[1720744177384,4.09204664,57580.0,57579.0,0.084487]
[1720744177559,4.09204718,57580.0,57579.0,0.070487]
[1720744177801,4.09204718,57580.0,57579.0,0.084487]
[1720744178005,4.09204701,57580.0,57579.0,0.296487]
[1720744178211,4.09204701,57580.0,57579.0,0.270487]
[1720744178632,4.09204701,57580.0,57579.0,0.275487]
[1720744178855,3.77319492,57580.0,57579.0,0.275487]
[1720744179288,3.77319492,57580.0,57579.0,0.280487]
[1720744179697,3.77319492,57580.0,57579.0,0.32848905]
[1720744179899,3.77319492,57580.0,57579.0,0.38848905]
[1720744180112,3.7000716,57580.0,57579.0,1.42708775]
[1720744180335,3.6209716,57580.0,57579.0,1.83443575]
[1720744180748,3.6209716,57580.0,57579.0,1.76443575]
[1720744181273,3.6209716,57580.0,57579.0,1.77843575]
[1720744181458,3.6209716,57580.0,57579.0,1.77143575]
[1720744181656,3.6209716,57580.0,57579.0,1.76443575]
[1720744181894,3.6209716,57580.0,57579.0,1.77243575]
[1720744182488,3.6209716,57580.0,57579.0,1.77843575]
[1720744182855,3.6209716,57580.0,57579.0,1.43108775]
[1720744183829,3.6209716,57580.0,57579.0,0.53639175]
[1720744184038,3.6209716,57580.0,57579.0,1.08373975]
[1720744184619,3.6209716,57580.0,57579.0,1.09773975]
[1720744185500,3.6209716,57580.0,57579.0,1.44508775]
[1720744185905,3.6209716,57580.0,57579.0,1.50508775]
[1720744186427,3.6209716,57580.0,57579.0,1.44508775]
[1720744188872,3.6209716,57580.0,57579.0,1.50508775]
[1720744189074,3.6209716,57580.0,57579.0,1.85243575]
[1720744189473,3.6209716,57580.0,57579.0,1.79243575]
[1720744189922,3.6209716,57580.0,57579.0,0.75039175]
[1720744190121,3.6839716,57580.0,57579.0,0.75039175]
[1720744190351,3.7659716,57580.0,57579.0,0.75039175]
[1720744192862,3.7659716,57580.0,57579.0,0.2687157]
[1720744193063,3.77679436,57580.0,57579.0,0.098487]
[1720744193874,3.7659716,57580.0,57579.0,0.098487]
[1720744194071,3.77679466,57580.0,57579.0,0.098487]
[1720744194927,3.77679466,57580.0,57579.0,0.20648905]
[1720744195048,3.77679466,57580.0,57579.0,0.19248905]
[1720744195445,3.77679466,57580.0,57579.0,0.20048905]
[1720744196018,3.77679466,57580.0,57579.0,0.19248905]
[1720744196450,3.77679466,57580.0,57579.0,0.18848905]
[1720744196860,3.77679466,57580.0,57579.0,0.17848905]
[1720744197066,3.77679466,57580.0,57579.0,0.18348905]
[1720744197487,3.77679466,57580.0,57579.0,0.86973975]
[1720744197488,3.77679407,57580.0,57579.0,0.86973975]
[1720744197656,3.71379407,57580.0,57579.0,0.86973975]
[1720744197977,3.6209716,57580.0,57579.0,0.88173975]
[1720744198175,3.6209716,57580.0,57579.0,0.86973975]
[1720744198365,3.6209716,57580.0,57579.0,0.88073975]
[1720744198567,3.6209716,57580.0,57579.0,1.64943575]
[1720744198971,3.6209716,57580.0,57579.0,1.62443575]
[1720744199332,3.6209716,57580.0,57579.0,1.63843575]
[1720744200612,3.6209716,57580.0,57579.0,2.19978375]
[1720744200962,3.6209716,57580.0,57579.0,2.26178375]
[1720744201191,3.6209716,57580.0,57579.0,2.06178375]
[1720744201788,3.6209716,57580.0,57579.0,2.03378375]
[1720744202000,3.6209716,57580.0,57579.0,1.06973975]
[1720744202200,3.7652716,57580.0,57579.0,0.54871775]
[1720744202401,3.7652716,57580.0,57579.0,0.2547157]
[1720744202579,3.7760939,57580.0,57579.0,0.2547157]
[1720744202777,3.7760939,57580.0,57579.0,0.37671775]
[1720744202975,3.7652716,57580.0,57579.0,0.37671775]
[1720744203184,3.7652716,57580.0,57579.0,0.55039175]
[1720744203185,3.77609407,57580.0,57579.0,0.55039175]
[1720744203440,3.7652716,57580.0,57579.0,0.084487]
[1720744203642,3.7652716,57580.0,57565.0,0.10800205]
[1720744203643,3.63179419,57580.0,57565.0,0.10800205]
[1720744203838,3.63179419,57580.0,57572.0,0.2]
[1720744203839,0.1453,57574.0,57572.0,0.2]
[1720744204014,0.38520758,57573.0,57572.0,0.2]
[1720744204420,0.0828,57572.0,57564.0,0.2]
[1720744204798,0.2019,57567.0,57562.0,0.79241216]
[1720744204973,0.21272259,57567.0,57565.0,0.2]
[1720744205343,0.01082259,57567.0,57566.0,0.10891505]
[1720744205544,0.0828,57572.0,57571.0,0.2]
[1720744205774,0.09362486,57572.0,57571.0,0.30800205]
[1720744205935,0.29552486,57572.0,57571.0,0.30800205]
[1720744206258,0.29552486,57572.0,57571.0,0.48170005]
[1720744206259,0.0828,57572.0,57571.0,0.48170005]
[1720744207006,0.2019,57574.0,57571.0,0.48570005]
[1720744207194,0.2019,57574.0,57573.0,0.1931164]
[1720744207600,0.2019,57574.0,57573.0,0.19588157]
[1720744208003,0.2019,57574.0,57573.0,0.36957357]
[1720744209073,0.2029,57574.0,57573.0,0.36957357]
[1720744209708,0.2029,57574.0,57573.0,0.08787952]
[1720744209915,0.2029,57574.0,57573.0,0.00376517]
[1720744210290,0.2029,57574.0,57573.0,0.001]
[1720744210697,0.2029,57574.0,57573.0,0.00262789]
[1720744210898,0.2029,57574.0,57573.0,0.001]
[1720744210899,0.29002412,57574.0,57573.0,0.001]
[1720744211102,0.35602412,57574.0,57573.0,0.001]
[1720744212202,0.35602412,57574.0,57573.0,0.08611435]
[1720744212822,0.35602421,57574.0,57573.0,0.19717993]
[1720744213024,0.35602421,57574.0,57573.0,0.08917788]
[1720744213449,0.35602421,57574.0,57573.0,0.08611435]
[1720744213650,0.35602421,57574.0,57573.0,0.08511435]
[1720744213856,0.35502421,57574.0,57573.0,0.08511435]
[1720744214065,0.35502421,57574.0,57573.0,0.009]
[1720744214265,0.35602421,57574.0,57573.0,0.017]
[1720744214965,0.3452,57574.0,57573.0,0.017]
[1720744215566,0.3452,57574.0,57573.0,0.02006353]
[1720744215967,0.3452,57574.0,57573.0,0.12500205]
[1720744216167,0.3452,57574.0,57573.0,0.017]
[1720744220817,0.54607989,57574.0,57573.0,0.017]
[1720744221103,0.37239089,57574.0,57573.0,0.017]
[1720744221508,0.17049089,57574.0,57573.0,0.017]
[1720744221712,0.17049089,57574.0,57573.0,0.29829428]
[1720744221713,0.1433,57574.0,57573.0,0.29829428]
[1720744221915,3.6209716,57580.0,57579.0,0.30800205]
[1720744222141,3.6209716,57580.0,57579.0,0.5633451]
[1720744224195,3.6209716,57580.0,57579.0,0.5703451]